bitfinex/quotes_ETHUSD_20250523
["timestamp","ask_amount","ask_price","bid_price","bid_amount"]
[1748013845742,3.88266913,2575.6,2575.3,28.42651812]
[1748013845942,3.88274121,2575.5,2575.4,16.76]
[1748013848687,3.88274121,2575.5,2575.4,28.398]
[1748013849049,3.88274121,2575.5,2575.4,16.76]
[1748013851685,7.67274121,2575.5,2575.4,16.76]
[1748013853503,8.50554121,2575.5,2575.4,16.76]
[1748013853706,18.24435683,2575.5,2575.4,16.76]
[1748013853907,18.24435683,2575.5,2575.4,32.943]
[1748013854253,28.51435683,2575.5,2575.4,16.76]
[1748013854447,5.26589197,2575.4,2575.3,16.74051812]
[1748013854661,5.3048763,2575.4,2575.3,16.74051812]
[1748013854888,17.25486939,2575.4,2575.3,16.74051812]
[1748013855091,19.54388506,2575.4,2574.6,16.759]
[1748013855390,3.88394764,2574.7,2574.6,16.759]
[1748013855551,7.67394764,2574.7,2574.6,32.942]
[1748013857893,9.62202474,2574.7,2574.6,32.942]
[1748013860554,7.67394764,2574.7,2574.6,32.942]
[1748013861103,3.79,2574.7,2574.6,32.942]
[1748013861399,7.67394764,2574.7,2574.6,32.942]
[1748013861996,7.67394764,2574.7,2574.6,32.945]
[1748013862399,7.67394764,2574.7,2574.6,16.759]
[1748013862722,20.54918296,2574.7,2574.6,32.945]
[1748013863313,28.54918296,2574.7,2574.6,32.945]
[1748013863781,29.33378296,2574.7,2574.6,16.759]
[1748013863990,3.88424936,2574.5,2574.4,16.186]
[1748013867901,7.67424936,2574.5,2574.4,16.186]
[1748013870635,3.79,2574.5,2574.4,18.6287]
[1748013870848,7.67424936,2574.5,2574.4,18.6287]
[1748013871800,3.88417051,2574.6,2574.4,18.6287]
[1748013872318,3.88424936,2574.5,2574.4,18.6287]
[1748013872704,3.88424936,2574.5,2574.4,28.6541]
[1748013872904,3.88424936,2574.5,2574.4,27.83]
[1748013873104,3.88424936,2574.5,2574.4,16.188]
[1748013876432,12.65674936,2574.5,2574.4,16.188]
[1748013877538,3.88424936,2574.5,2574.4,16.188]
[1748013878810,5.07907038,2574.5,2574.4,16.188]
[1748013879012,3.88515482,2573.9,2573.8,16.763]
[1748013879239,3.88515482,2573.9,2573.8,44.596]
[1748013879554,3.88515482,2573.9,2573.8,32.953]
[1748013881629,3.88515482,2573.9,2573.8,44.597]
[1748013883515,3.88515482,2573.9,2573.8,32.953]
[1748013883715,3.88515482,2573.9,2573.8,44.597]
[1748013884021,3.88515482,2573.9,2573.8,32.953]
[1748013884243,3.88515482,2573.9,2573.8,44.597]
[1748013885147,3.88515482,2573.9,2573.8,32.953]
[1748013885353,3.88515482,2573.9,2573.8,44.597]
[1748013886454,3.79,2574.4,2573.8,44.597]
[1748013886639,3.79,2574.5,2573.9,0.8014]
[1748013886840,3.88500388,2574.0,2573.9,0.8014]
[1748013887042,3.88500388,2574.0,2573.9,28.5924]
[1748013887648,3.88500388,2574.0,2573.9,27.791]
[1748013888817,3.88500388,2574.0,2573.9,16.147]
[1748013890511,3.79,2574.5,2574.0,0.8032]
[1748013890764,3.88485186,2574.2,2574.0,0.8032]
[1748013890961,3.88485295,2574.1,2574.0,0.8032]
[1748013896454,3.79,2574.5,2574.0,0.8032]
[1748013896659,7.67437958,2574.5,2574.1,0.03884446]
[1748013896872,11.88305674,2575.3,2573.9,16.147]
[1748013896873,3.79,2574.8,2574.3,3.88455114]
[1748013897161,3.79,2574.8,2574.7,3.88394764]
[1748013897362,3.79,2575.3,2574.8,9.3664236]
[1748013897528,3.88320831,2575.2,2574.9,35.01404236]
[1748013897729,3.88348033,2575.1,2574.9,35.01404236]
[1748013897939,3.88343678,2575.1,2574.9,35.01404236]
[1748013898510,3.88327243,2575.2,2574.9,35.01404236]
[1748013898718,3.79,2575.3,2575.0,0.81962993]
[1748013898979,3.79,2575.3,2575.1,12.08545469]
[1748013899339,3.79,2575.3,2575.2,0.7808]
[1748013900552,7.67304275,2575.3,2575.2,0.7808]
[1748013900751,3.79,2575.3,2575.2,0.7808]
[1748013900953,3.79,2575.3,2575.2,2.06742547]
[1748013901480,3.88226486,2575.9,2575.2,10.06742547]
[1748013901481,3.8826579,2575.6,2575.2,10.06742547]
[1748013901686,3.882833,2575.5,2575.2,10.06742547]
[1748013902971,3.88289621,2575.4,2575.2,10.06742547]
[1748013903155,3.88276792,2575.5,2575.2,10.06742547]
[1748013903487,3.88259765,2575.6,2575.3,0.81441689]
[1748013903666,3.88259765,2575.6,2575.4,16.142]
[1748013903990,3.88246322,2575.7,2575.4,16.142]
[1748013904163,3.8826048,2575.6,2575.4,16.142]
[1748013904359,3.79,2575.9,2575.4,16.142]
[1748013904576,3.88244281,2575.7,2575.6,0.7553]
[1748013904773,3.88244281,2575.7,2575.6,12.3963]
[1748013904959,3.88274121,2575.5,2575.4,16.142]
[1748013905303,3.88274121,2575.5,2575.4,16.14]
[1748013906152,3.88334433,2575.1,2575.0,0.8149]
[1748013906455,8.06167876,2575.1,2575.0,16.14]
[1748013906793,8.85907876,2575.1,2575.0,16.14]
[1748013907462,8.47074433,2575.1,2575.0,16.14]
[1748013907791,7.67334433,2575.1,2575.0,16.14]
[1748013908116,3.88349514,2575.0,2574.9,16.767]
[1748013908399,3.88349514,2575.0,2574.9,32.908]
[1748013909455,0.7596,2575.5,2575.0,0.7927]
[1748013909793,0.8282,2575.9,2575.1,0.03883052]
[1748013909982,3.88334433,2575.1,2575.0,0.7927]
[1748013910149,3.88334433,2575.1,2575.0,12.4327]
[1748013911090,3.88334433,2575.1,2574.9,32.908]
[1748013911091,3.88349514,2575.0,2574.9,16.767]
[1748013911278,3.88349514,2575.0,2574.9,32.907]
[1748013912700,7.67349514,2575.0,2574.9,32.907]
[1748013912920,9.21750105,2575.0,2574.9,32.907]
[1748013913838,7.67349514,2575.0,2574.9,32.907]
[1748013914037,3.79,2575.0,2574.9,44.547]
[1748013914238,7.67349514,2575.0,2574.9,44.547]
[1748013916843,3.79,2575.0,2574.9,44.547]
[1748013917028,7.67349514,2575.0,2574.9,44.547]
[1748013917742,3.79,2575.0,2574.9,44.547]
[1748013917904,3.88349514,2575.0,2574.9,44.547]
[1748013918335,3.79,2575.5,2574.9,44.547]
[1748013918702,3.88349514,2575.0,2574.9,32.907]
[1748013918902,3.88349514,2575.0,2574.9,44.547]
[1748013919400,3.88349514,2575.0,2574.9,32.907]
[1748013919632,4.66018204,2575.0,2574.9,32.907]
[1748013921114,3.88349514,2575.0,2574.9,32.907]
[1748013921739,4.69259514,2575.0,2574.9,32.907]
[1748013921943,4.69259514,2575.0,2574.9,16.767]
[1748013922143,4.69259514,2575.0,2574.9,32.864]
[1748013923056,12.69259514,2575.0,2574.9,16.767]
[1748013923198,4.66284936,2574.5,2574.4,16.097]
[1748013923405,4.66324765,2574.3,2574.2,16.097]
[1748013923640,12.70223198,2574.3,2574.2,16.097]
[1748013923900,3.88500388,2574.0,2573.9,16.761]
[1748013924131,17.17357447,2574.0,2573.9,16.761]
[1748013924335,14.99175482,2573.9,2573.8,16.097]
[1748013924543,19.33175482,2573.9,2573.8,16.097]
[1748013926274,4.71221172,2573.2,2573.1,16.761]
[1748013926467,4.71221172,2573.2,2573.1,32.862]
[1748013926468,5.57204105,2573.2,2573.1,32.862]
[1748013927135,3.88621172,2573.2,2573.1,32.862]
[1748013927535,3.88621172,2573.2,2573.1,33.6828]
[1748013927746,3.88614893,2573.3,2573.1,33.6828]
[1748013927930,14.70461687,2574.3,2573.1,33.6828]
[1748013927931,1.63197059,2574.0,2573.1,33.6828]
[1748013928150,3.88531605,2573.8,2573.1,37.56910535]
[1748013928346,3.88564405,2573.6,2573.1,37.56910535]
[1748013928639,3.88572956,2573.6,2573.1,33.6828]
[1748013929171,3.88572956,2573.6,2573.1,37.5690632]
[1748013929537,3.88551321,2573.7,2573.2,3.88613464]
[1748013929732,0.7606,2574.2,2573.1,37.5690632]
[1748013929733,10.27,2574.3,2573.4,0.832]
[1748013929938,3.88497399,2574.1,2573.6,3.88553115]
[1748013930134,3.88462189,2574.3,2573.8,4.71723198]
[1748013930375,4.63554538,2574.8,2573.8,0.832]
[1748013930587,3.88492469,2574.1,2573.8,0.832]
[1748013930877,3.88411424,2574.6,2573.8,0.832]
[1748013930878,3.88515482,2573.9,2573.8,0.832]
[1748013931050,3.88491541,2574.1,2573.8,28.579]
[1748013931255,3.88508646,2574.0,2573.8,28.579]
[1748013931581,3.88487368,2574.1,2573.8,28.579]
[1748013931777,0.46355454,2574.7,2573.8,28.579]
[1748013931939,4.34752567,2574.7,2574.0,3.88489487]
[1748013932275,3.8842555,2574.5,2574.2,0.7659]
[1748013932477,3.8844674,2574.4,2574.3,27.746]
[1748013933259,3.88435401,2574.5,2574.3,27.746]
[1748013933458,3.88434151,2574.5,2574.3,27.746]
[1748013933781,3.88440024,2574.4,2574.3,16.103]
[1748013933965,3.88455114,2574.3,2574.1,16.767]
[1748013934168,3.88455114,2574.3,2574.2,16.103]
[1748013938001,7.67455114,2574.3,2574.2,16.103]
[1748013938347,3.79,2574.3,2574.2,16.103]
[1748013938687,10.27,2574.7,2574.2,16.103]
[1748013938688,3.88419745,2574.6,2574.2,16.9316]
[1748013938892,3.88447635,2574.4,2574.2,16.9316]
[1748013939052,3.88432933,2574.5,2574.2,16.9316]
[1748013939396,3.88426634,2574.5,2574.2,16.9316]
[1748013939751,3.79,2574.7,2574.3,11.88444268]
[1748013939987,3.79,2574.7,2574.5,4.6861831]
[1748013940289,3.79,2575.2,2574.6,1.6368021]
[1748013940503,3.88373199,2574.9,2574.7,16.102]
[1748013940704,3.88373199,2574.9,2574.8,11.643]
[1748013942173,3.8835194,2575.0,2574.8,16.101]
[1748013942474,3.88364596,2574.9,2574.8,16.101]
[1748013943579,4.66036063,2574.9,2574.8,16.101]
[1748013943792,8.45036063,2574.9,2574.8,16.101]
[1748013943975,8.45036063,2574.9,2574.8,16.061]
[1748013946819,9.26476063,2574.9,2574.8,16.061]
[1748013946978,11.59476063,2574.9,2574.8,16.061]
[1748013947373,9.26476063,2574.9,2574.8,16.061]
[1748013948374,3.88470204,2574.2,2574.1,16.767]
[1748013948574,7.67470204,2574.2,2574.1,32.828]
[1748013948774,8.83063014,2574.2,2574.1,32.828]
[1748013949228,8.83063014,2574.2,2574.1,16.767]
[1748013949507,8.83063014,2574.2,2574.1,32.828]
[1748013950097,8.83063014,2574.2,2574.1,32.829]
[1748013951095,19.10063014,2574.2,2574.1,32.829]
[1748013951269,42.45323014,2574.2,2574.1,16.767]
[1748013951918,40.12323014,2574.2,2574.1,16.767]
[1748013953715,39.57323014,2574.2,2574.1,16.767]
[1748013954081,27.93123014,2574.2,2574.1,16.767]
[1748013954507,19.93123014,2574.2,2574.1,16.767]
[1748013955813,19.10063014,2574.2,2574.1,16.767]
[1748013956384,7.67470204,2574.2,2574.1,16.767]
[1748013957206,12.66139679,2574.8,2574.1,16.767]
[1748013957207,3.79,2574.7,2574.1,17.5191]
[1748013957484,3.88470204,2574.2,2574.1,17.5191]
[1748013959334,3.88470204,2574.2,2574.1,16.767]
[1748013959539,3.88470204,2574.2,2574.1,32.832]
[1748013959691,4.66162758,2574.2,2574.1,32.832]
[1748013960505,4.66162758,2574.2,2574.1,16.767]
[1748013960804,17.85941191,2574.2,2574.1,32.832]
[1748013961007,17.82042758,2574.2,2574.1,32.832]
[1748013962053,20.15042758,2574.2,2574.1,32.832]
[1748013963696,20.15042758,2574.2,2574.1,16.065]
[1748013964135,3.88590969,2573.4,2573.3,16.768]
[1748013964303,7.67590969,2573.4,2573.3,32.834]
[1748013967734,8.83207909,2573.4,2573.3,32.834]
[1748013968037,8.83207909,2573.4,2573.3,32.836]
[1748013968038,19.92727909,2573.4,2573.3,32.836]
[1748013969349,3.88666485,2572.9,2572.6,0.8088]
[1748013969526,3.88666485,2572.9,2572.8,16.6260602]
[1748013970353,4.66398549,2572.9,2572.8,16.6260602]
[1748013971048,3.88666485,2572.9,2572.8,16.6260602]
[1748013971212,23.436,2573.3,2572.9,0.7818]
[1748013971213,3.79,2573.3,2572.9,0.7818]
[1748013971417,3.79,2573.3,2572.9,0.82066337]
[1748013971619,3.88646392,2573.1,2572.9,0.82066061]
[1748013971819,3.88651379,2573.0,2572.9,0.7818]
[1748013974364,3.79,2574.5,2573.0,0.7818]
[1748013974549,0.8282,2574.7,2573.5,0.7818]
[1748013974861,3.88418333,2574.6,2573.8,4.66698842]
[1748013975077,0.27602784,2574.7,2573.8,4.66698842]
[1748013975078,4.16002465,2574.7,2573.8,0.7818]
[1748013975284,3.88470204,2574.2,2573.9,16.036]
[1748013975597,3.88500388,2574.0,2573.9,16.036]
[1748013976951,3.88500388,2574.0,2573.8,0.7818]
[1748013977131,3.88500388,2574.0,2573.6,16.772]
[1748013977132,3.88545673,2573.7,2573.6,16.772]
[1748013977531,3.88545673,2573.7,2573.6,32.806]
[1748013982787,7.67545673,2573.7,2573.6,32.806]
[1748013983991,3.88545673,2573.7,2573.6,32.806]
[1748013986614,11.88545673,2573.7,2573.6,32.806]
[1748013988629,3.88545673,2573.7,2573.6,32.806]
[1748013989717,8.84105128,2573.7,2573.6,16.772]
[1748013989892,8.84105128,2573.7,2573.6,32.806]
[1748013990253,9.64065128,2573.7,2573.6,32.806]
[1748013990900,27.91065128,2573.7,2573.6,32.806]
[1748013991091,30.79065128,2573.7,2573.6,32.806]
[1748013991455,8.8167,2573.3,2572.8,17.3290602]
[1748013991821,3.88666485,2572.9,2572.8,17.3290602]
[1748013991978,3.88666485,2572.9,2572.8,33.3640602]
[1748013993621,3.88666485,2572.9,2572.8,32.806]
[1748013994599,7.67666485,2572.9,2572.8,32.806]
[1748013996683,7.67666485,2572.9,2572.8,32.807]
[1748013996894,10.38642167,2572.9,2572.8,32.807]
[1748013997097,7.67666485,2572.9,2572.8,32.807]
[1748013999104,7.67641144,2573.1,2572.8,44.456]
[1748013999274,3.79,2573.1,2572.9,0.7532]
[1748013999687,3.79,2573.1,2572.9,4.63984872]
[1748014000298,3.79,2573.1,2573.0,4.65281379]
[1748014000509,3.79,2573.7,2573.2,0.7663]
[1748014000749,7.67556553,2573.7,2573.3,27.686]
[1748014000880,3.88570666,2573.6,2573.3,27.686]
[1748014001087,3.79,2574.1,2573.5,0.7607]
[1748014001287,3.8850768,2574.0,2573.6,12.52507]
[1748014001492,3.8851649,2573.9,2573.6,12.52507]
[1748014001989,3.8850725,2574.0,2573.6,12.52507]
[1748014002514,3.79,2574.2,2573.7,0.7844]
[1748014002674,3.79,2574.3,2573.8,34.47942705]
[1748014002873,3.88492758,2574.1,2573.9,11.648]
[1748014003102,7.6739876,2574.7,2573.9,11.648]
[1748014003283,3.88455239,2574.3,2574.0,0.7819]
[1748014003483,3.88477903,2574.2,2574.0,0.7819]
[1748014003688,3.88477903,2574.2,2574.1,0.87607]
[1748014003984,7.67395876,2574.7,2574.1,0.87607]
[1748014004186,3.88455858,2574.3,2574.2,11.648]
[1748014004384,3.88426963,2574.5,2574.2,27.649]
[1748014004592,10.27,2574.9,2574.3,0.7799]
[1748014004593,3.88364596,2574.9,2574.3,0.7799]
[1748014004794,3.88408117,2574.7,2574.4,1.66842705]
[1748014005084,3.8840985,2574.6,2574.4,1.66842705]
[1748014005285,5.72207843,2575.0,2574.4,1.66842705]
[1748014005594,3.88373452,2574.9,2574.4,5.55275121]
[1748014005795,3.88380201,2574.8,2574.5,0.7826]
[1748014006117,3.88367367,2574.9,2574.6,11.89210271]
[1748014006321,3.88367367,2574.9,2574.7,16.001]
[1748014006531,3.88367367,2574.9,2574.8,16.769]
[1748014006732,3.88259046,2575.6,2574.8,16.769]
[1748014006890,3.88356929,2575.0,2574.9,0.7531]
[1748014007090,3.88342339,2575.1,2574.9,1.38406729]
[1748014007407,3.88326394,2575.2,2575.0,11.645]
[1748014007787,3.88349514,2575.0,2574.9,0.7531]
[1748014008004,3.88349514,2575.0,2574.9,15.999]
[1748014009289,3.88364596,2574.9,2574.8,16.769]
[1748014009719,5.04869679,2574.9,2574.8,32.765]
[1748014010320,3.88470204,2574.2,2574.1,0.7717]
[1748014010511,3.88485295,2574.1,2574.0,16.766]
[1748014010736,3.88485295,2574.1,2574.0,32.762]
[1748014011902,4.74200082,2574.1,2574.0,32.762]
[1748014012601,3.88485295,2574.1,2574.0,32.762]
[1748014014537,3.88485295,2574.1,2574.0,32.763]
[1748014017524,18.49485295,2574.1,2574.0,32.763]
[1748014017729,30.94625295,2574.1,2574.0,15.997]
[1748014018035,18.75225295,2574.1,2574.0,15.997]
[1748014019025,17.94485295,2574.1,2574.0,15.997]
[1748014019430,7.67485295,2574.1,2574.0,15.997]
[1748014020510,3.88485295,2574.1,2574.0,15.997]
[1748014020837,3.88485295,2574.1,2574.0,16.812]
[1748014021219,3.88485295,2574.1,2574.0,27.642]
[1748014021423,3.88530577,2573.8,2573.7,0.815]
[1748014021635,3.88530577,2573.8,2573.7,36.458]
[1748014022238,3.88519913,2573.9,2573.7,36.458]
[1748014022441,3.88449813,2574.4,2573.7,36.458]
[1748014022442,3.88510507,2574.0,2573.7,36.458]
[1748014022739,3.88530577,2573.8,2573.7,36.458]
[1748014023607,3.88510507,2574.0,2573.7,36.458]
[1748014024201,3.88519577,2573.9,2573.8,15.998]
[1748014024427,3.79,2574.5,2573.8,27.642]
[1748014024816,3.88451885,2574.4,2573.9,12.69079195]
[1748014025018,3.88457247,2574.3,2573.9,12.69079195]
[1748014025213,3.88441841,2574.4,2573.9,12.69079018]
[1748014025417,0.8183,2575.0,2574.2,8.0]
[1748014025603,3.88388282,2574.8,2574.4,8.0]
[1748014025803,3.88395396,2574.7,2574.4,8.0]
[1748014026438,3.88424936,2574.5,2574.4,8.0]
[1748014026736,3.79,2575.2,2574.4,8.0]
[1748014026926,3.88402046,2574.7,2574.4,8.0]
[1748014027142,3.88402046,2574.7,2574.5,1.35601927]
[1748014028834,3.8840985,2574.6,2574.5,1.35601927]
[1748014029255,3.88440024,2574.4,2574.3,16.768]
[1748014029441,3.88439281,2574.5,2574.3,44.407]
[1748014029647,3.88424936,2574.5,2574.3,44.407]
[1748014030046,3.88440024,2574.4,2574.3,44.407]
[1748014030242,3.88319353,2575.2,2574.3,16.768]
[1748014030444,3.88416947,2574.6,2574.3,44.407]
[1748014030645,1.18831935,2575.1,2574.3,44.407]
[1748014030646,3.88409091,2574.7,2574.3,44.407]
[1748014030825,3.88410988,2574.6,2574.3,44.407]
[1748014031351,3.88430804,2574.5,2574.3,44.407]
[1748014031858,3.88319353,2575.2,2574.3,44.407]
[1748014031859,3.88386944,2574.8,2574.4,0.8002]
[1748014032247,3.88395168,2574.7,2574.4,0.8002]
[1748014033365,3.88349514,2575.0,2574.4,0.8002]
[1748014033527,3.79,2575.1,2574.4,0.764]
[1748014033857,3.79,2575.1,2574.8,0.7813]
[1748014034361,8.44069213,2575.1,2574.9,15.961]
[1748014034537,3.88394124,2574.8,2574.5,12.4233]
[1748014034742,3.88403147,2574.7,2574.6,15.961]
[1748014036365,3.88403147,2574.7,2574.6,27.603]
[1748014036727,3.88379717,2574.8,2574.6,27.603]
[1748014037055,3.88394764,2574.7,2574.6,27.603]
[1748014038132,3.88381657,2574.8,2574.3,17.5548]
[1748014038477,3.88394764,2574.7,2574.6,15.961]
[1748014039528,3.88440024,2574.4,2574.3,16.768]
[1748014039766,13.45015011,2574.4,2574.3,32.729]
[1748014039940,12.66125011,2574.4,2574.3,32.729]
[1748014040264,11.88440024,2574.4,2574.3,32.729]
[1748014042347,3.88435518,2574.5,2574.3,44.37]
[1748014042551,3.88411304,2574.6,2574.3,44.37]
[1748014042872,3.79,2575.0,2574.4,0.796]
[1748014043074,3.88380257,2574.8,2574.4,0.796]
[1748014043277,3.88354136,2575.0,2574.5,3.88419987]
[1748014043446,3.88338688,2575.1,2574.5,4.65049987]
[1748014043651,3.88357065,2575.0,2574.5,4.65049987]
[1748014044031,3.79,2575.3,2574.7,0.8045]
[1748014044237,3.88352187,2575.0,2574.8,27.603]
[1748014044559,8.0,2575.4,2574.8,27.603]
[1748014044560,3.88304275,2575.3,2574.8,27.603]
[1748014044760,3.88336134,2575.1,2574.8,27.603]
[1748014045083,3.88317654,2575.3,2574.9,0.8134]
[1748014045280,3.88328896,2575.2,2574.9,0.8134]
[1748014045480,3.88344266,2575.1,2575.0,27.603]
[1748014046682,3.88344266,2575.1,2574.4,0.7728]
[1748014046882,3.88319353,2575.2,2574.5,27.601]
[1748014047384,3.8840678,2574.7,2574.5,27.601]
[1748014047787,3.8840985,2574.6,2574.5,27.601]
[1748014048556,3.88400448,2574.7,2574.5,27.601]
[1748014048796,3.8840985,2574.6,2574.5,27.601]
[1748014051493,3.8840985,2574.6,2574.5,15.96]
[1748014051801,3.8840985,2574.6,2574.4,0.7728]
[1748014051802,3.88440024,2574.4,2574.3,16.768]
[1748014052001,3.88440024,2574.4,2574.3,44.367]
[1748014052205,3.88440024,2574.4,2574.3,32.727]
[1748014052375,5.42867797,2574.4,2574.3,32.727]
[1748014052710,3.88440024,2574.4,2574.3,32.727]
[1748014055071,3.88440024,2574.4,2574.3,44.368]
[1748014056532,3.88440024,2574.4,2574.3,32.728]
[1748014058282,8.43010024,2574.4,2574.3,16.768]
[1748014058481,9.66153811,2574.4,2574.3,16.768]
[1748014058719,11.99153811,2574.4,2574.3,16.768]
[1748014058922,19.99153811,2574.4,2574.3,16.768]
[1748014059426,17.66153811,2574.4,2574.3,16.768]
[1748014061451,17.66153811,2574.4,2574.3,32.73]
[1748014061655,9.66153811,2574.4,2574.3,32.73]
[1748014061945,8.43010024,2574.4,2574.3,32.73]
[1748014066183,7.67440024,2574.4,2574.3,32.73]
[1748014066561,8.50150024,2574.4,2574.3,16.768]
[1748014066870,8.50150024,2574.4,2574.3,32.698]
[1748014067072,10.83150024,2574.4,2574.3,32.698]
[1748014067276,12.30307812,2574.4,2574.3,32.698]
[1748014067476,8.50150024,2574.4,2574.3,32.698]
[1748014067644,7.67440024,2574.4,2574.3,32.698]
[1748014068513,3.79,2574.4,2574.3,32.698]
[1748014068790,7.67440024,2574.4,2574.3,32.698]
[1748014068945,7.67440024,2574.4,2574.3,16.768]
[1748014069150,7.67440024,2574.4,2574.3,44.341]
[1748014070515,3.79,2575.0,2574.3,45.1055]
[1748014070795,3.88440024,2574.4,2574.3,45.1055]
[1748014071408,3.79,2575.0,2574.3,45.1055]
[1748014071559,3.79,2575.1,2574.5,0.7534]
[1748014071761,3.88378559,2574.9,2574.6,12.10677916]
[1748014071971,3.8835966,2575.0,2574.6,12.10677916]
[1748014072222,3.79,2575.1,2574.7,8.7534]
[1748014072500,3.88353558,2575.0,2574.8,15.93]
[1748014072706,3.88353558,2575.0,2574.9,11.643]
[1748014072904,3.88353558,2575.0,2574.9,13.72371789]
[1748014075367,3.88353558,2575.0,2574.9,2.08071789]
[1748014075567,3.88353558,2575.0,2574.9,27.57]
[1748014076022,7.67341525,2575.1,2574.9,27.57]
[1748014076223,3.88349514,2575.0,2574.9,27.57]
[1748014080930,3.79,2575.3,2575.2,0.7623]
[1748014081134,3.88334433,2575.1,2575.0,0.7623]
[1748014081332,3.88379679,2574.8,2574.7,0.7623]
[1748014081664,3.88367722,2574.9,2574.4,0.7631]
[1748014081665,3.88424936,2574.5,2574.4,0.7631]
[1748014081814,3.88424936,2574.5,2574.4,27.564]
[1748014084230,3.88424936,2574.5,2574.2,0.7631]
[1748014084231,3.88440024,2574.4,2574.2,0.7631]
[1748014084468,3.88440024,2574.4,2574.3,18.52111]
[1748014084677,8.46050024,2574.4,2574.3,32.693]
[1748014087064,7.67440024,2574.4,2574.3,32.693]
[1748014088949,3.88440024,2574.4,2574.3,32.693]
[1748014089175,3.88440024,2574.4,2574.3,16.768]
[1748014089485,5.04967818,2574.4,2574.3,44.336]
[1748014090399,3.88440024,2574.4,2574.3,32.695]
[1748014090691,3.88440024,2574.4,2574.3,32.696]
[1748014092271,3.88440024,2574.4,2573.4,8.0]
[1748014092272,8.02464196,2574.4,2574.0,15.928]
[1748014092590,8.02464196,2574.4,2573.5,16.764]
[1748014092591,3.8856077,2573.6,2573.5,16.764]
[1748014092768,3.8856077,2573.6,2573.5,32.692]
[1748014093091,3.8856077,2573.6,2573.5,44.334]
[1748014094787,3.79,2573.7,2573.5,44.334]
[1748014094972,3.79,2573.7,2573.6,8.8182]
[1748014095601,7.67545673,2573.7,2573.6,36.3912]
[1748014095799,7.67545673,2573.7,2573.6,36.94904997]
[1748014096565,7.67545673,2573.7,2573.6,9.37604997]
[1748014096762,7.67545673,2573.7,2573.6,28.09784997]
[1748014096997,7.67545673,2573.7,2573.6,3.10234702]
[1748014097209,3.79,2573.7,2573.6,28.09784997]
[1748014097501,3.79,2573.7,2573.6,36.09784997]
[1748014097702,11.0911,2574.4,2573.6,36.09784997]
[1748014097703,3.88542095,2573.8,2573.6,36.09784997]
[1748014097898,3.88545673,2573.7,2573.6,36.09784997]
[1748014098803,3.88545673,2573.7,2573.6,35.54]
[1748014099110,3.88545673,2573.7,2573.6,27.54]
[1748014099304,3.8856077,2573.6,2573.5,16.764]
[1748014099804,3.8856077,2573.6,2573.5,44.304]
[1748014101992,3.8856077,2573.6,2573.5,32.661]
[1748014102201,3.8856077,2573.6,2573.5,44.304]
[1748014103808,3.8856077,2573.6,2573.5,32.661]
[1748014104105,7.6756077,2573.6,2573.5,32.662]
[1748014104308,8.9104872,2573.6,2573.5,32.662]
[1748014109105,9.7032872,2573.6,2573.5,32.664]
[1748014109474,30.8532872,2573.6,2573.5,16.764]
[1748014109707,30.8532872,2573.6,2573.5,32.664]
[1748014110309,30.3032872,2573.6,2573.5,32.664]
[1748014113535,30.8532872,2573.6,2573.5,32.664]
[1748014114017,3.8878292,2572.2,2571.9,0.7585]
[1748014114182,3.8878292,2572.2,2572.1,8.55812755]
[1748014115517,3.88764005,2572.3,2572.1,8.55812755]
[1748014116031,3.88757143,2572.3,2572.1,8.55812755]
[1748014116213,3.88772257,2572.2,2572.1,8.55812755]
[1748014116383,3.88772257,2572.2,2572.1,10.2267746]
[1748014116586,3.88772257,2572.2,2572.1,2.2267746]
[1748014116899,3.88772257,2572.2,2572.1,12.20512755]
[1748014117107,3.88772257,2572.2,2572.1,0.55812755]
[1748014117309,3.88772257,2572.2,2572.1,16.46112755]
[1748014117508,3.88772257,2572.2,2572.1,15.903]
[1748014117736,7.7167069,2572.2,2572.1,15.903]
[1748014117932,8.91570308,2572.2,2572.1,15.903]
[1748014120133,8.91570308,2572.2,2572.0,16.771]
[1748014120134,3.88787372,2572.1,2572.0,16.771]
[1748014120289,3.88787372,2572.1,2572.0,32.675]
[1748014122539,3.88787372,2572.1,2572.0,32.678]
[1748014122540,4.66947372,2572.1,2572.0,32.678]
[1748014122893,4.66947372,2572.1,2572.0,16.771]
[1748014123223,13.90419552,2572.1,2572.0,32.678]
[1748014123541,7.67787372,2572.1,2572.0,32.678]
[1748014123703,3.79,2572.5,2572.0,36.56593458]
[1748014123904,3.88772257,2572.2,2572.1,11.651]
[1748014124531,3.88787372,2572.1,2572.0,16.771]
[1748014124725,3.88787372,2572.1,2572.0,32.679]
[1748014128031,3.88787372,2572.1,2572.0,16.771]
[1748014128344,3.88787372,2572.1,2572.0,44.295]
[1748014128708,3.88787372,2572.1,2572.0,32.644]
[1748014130634,8.47197372,2572.1,2572.0,32.644]
[1748014131143,18.49787372,2572.1,2572.0,15.873]
[1748014131315,23.11919945,2572.1,2572.0,15.873]
[1748014132670,22.56919945,2572.1,2572.0,15.873]
[1748014133267,17.94787372,2572.1,2572.0,15.873]
[1748014133438,14.06,2572.1,2572.0,15.873]
[1748014133640,14.06,2572.1,2572.0,16.6851]
[1748014134068,3.79,2572.6,2572.0,16.6851]
[1748014134250,3.79,2572.6,2572.1,11.653]
[1748014134455,3.88765439,2572.3,2572.2,16.78]
[1748014135366,3.79,2572.6,2572.2,16.78]
[1748014135668,7.67651967,2573.0,2572.2,16.78]
[1748014135867,3.88688885,2572.8,2572.3,8.7912]
[1748014136095,3.88688885,2572.8,2572.4,11.652]
[1748014136237,3.88711809,2572.6,2572.5,15.874]